fUSD/lending_fUSD_20250205
["ID","MTS","AMOUNT","RATE_DAILY","PERIOD"]
[351803325,1738792278289,-594.47505854,0.000137,2]
[351803326,1738792278298,-594.47505854,0.000137,2]
[351803327,1738792278308,-594.47505854,0.000137,2]
[351803328,1738792278318,-594.47505854,0.000137,2]
[351803329,1738792278329,-594.47505854,0.000137,2]
[351803330,1738792278339,-594.47505854,0.000137,2]
[351803331,1738792278348,-594.47505854,0.000137,2]
[351803332,1738792278358,-594.47505854,0.000137,2]
[351803333,1738792278368,-594.47505854,0.000137,2]
[351803334,1738792278377,-594.47505854,0.000137,2]
[351803335,1738792278387,-594.47505854,0.000137,2]
[351803336,1738792278397,-594.47,0.000137,2]
[351803337,1738792278406,-11086.41,0.000137,2]
[351803338,1738792278416,-300.57,0.00013817,2]
[351803339,1738792278426,-500.0,0.00013817,2]
[351803340,1738792278436,-274.76,0.00013817,2]
[351803341,1738792278446,-500.0,0.00013817,2]
[351803342,1738792278455,-539.96,0.00013817,2]
[351803343,1738792278465,-2000.0,0.00013818,2]
[351803344,1738792278474,-44017.7659621,0.000139,7]
[351803345,1738792278484,-150.0,0.00013917,2]
[351803346,1738792278494,-1000.0,0.00013918,2]
[351803347,1738792278504,-2000.0,0.00013937,2]
[351803348,1738792278515,-500.0,0.00013954,2]
[351803349,1738792278524,-500.0,0.00013954,2]
[351803350,1738792278533,-539.96,0.00013954,2]
[351803351,1738792278543,-431.22130381,0.00013986,2]
[351803352,1738792278553,-1200.0,0.00014,4]
[351803353,1738792278562,-103713.21552414,0.00014,2]
[351803354,1738792278572,-3966.8520306,0.00014,2]
[351803355,1738792278581,-6317.425254,0.00014,2]
[351803356,1738792278590,-32325.33254955,0.00014,2]
[351803357,1738792278600,-900.0,0.00014,15]
[351803358,1738792278610,-723.564264,0.00014,2]
[351803359,1738792278620,-723.564272,0.00014,2]
[351803360,1738792278629,-484.9,0.00014,2]
[351803361,1738792278639,-484.9,0.00014,2]
[351803362,1738792278649,-423.12578,0.00014,2]
[351803363,1738792278659,-423.125788,0.00014,2]
[351803364,1738792278668,-151.0,0.00014,2]
[351803365,1738792278678,-174.770892,0.00014,2]
[351803366,1738792278687,-174.770882,0.00014,2]
[351803367,1738792278697,-255.754891,0.00014,2]
[351803368,1738792278707,-255.754896,0.00014,2]
[351803369,1738792278717,-219.0,0.00014,2]
[351803370,1738792278727,-33800.0,0.00014,10]
[351803371,1738792278736,-4170.0,0.00014,2]
[351803372,1738792278746,-2326.05984443,0.00014,2]
[351803373,1738792278756,-2054.46007668,0.00014,7]
[351803374,1738792278767,-2000.0,0.00014056,2]
[351803375,1738792278776,-555.9,0.00014091,2]
[351803376,1738792278787,-500.0,0.00014091,2]
[351803377,1738792278797,-539.96,0.00014091,2]
[351803378,1738792278808,-4999.99999999,0.00014111,2]
[351803379,1738792278818,-1000.0,0.0001417,2]
[351803380,1738792278827,-500.0,0.0001417,2]
[351803381,1738792278836,-2000.0,0.00014175,2]
[351803382,1738792278846,-500.0,0.00014228,2]
[351803383,1738792278856,-539.96,0.00014228,2]
[351803384,1738792278866,-740.21597268,0.00014247,2]
[351803385,1738792278875,-1000.0,0.00014247,2]
[351803386,1738792278885,-1000.0,0.00014247,2]
[351803387,1738792278894,-1000.0,0.00014247,2]
[351803388,1738792278904,-1000.0,0.00014247,2]
[351803389,1738792278914,-1000.0,0.00014247,2]
[351803390,1738792278925,-1000.0,0.00014247,2]
[351803391,1738792278935,-691.1480332,0.00014247,2]
[351803392,1738792278945,-264.70796905,0.0001429,7]
[351803393,1738792278955,-2000.0,0.00014294,2]
[351803394,1738792278965,-152.0,0.00014325,8]
[351803395,1738792278976,-699.71,0.0001434,2]
[351803396,1738792278985,-166.79,0.00014365,2]
[351803397,1738792278996,-539.96,0.00014365,2]
[351803398,1738792279006,-500.0,0.00014365,2]
[351803399,1738792279017,-9862.99450853,0.0001439,2]
[351803400,1738792279027,-2000.0,0.00014413,2]
[351803401,1738792279040,-500.0,0.00014465,2]
[351803402,1738792279052,-219.0,0.000145,2]
[351803403,1738792279063,-539.96,0.00014502,2]
[351803404,1738792279074,-2000.0,0.00014532,2]
[351803405,1738792279085,-500.0,0.00014565,2]
[351803406,1738792279095,-236.52,0.00014632,2]
[351803407,1738792279106,-539.96,0.00014639,2]
[351803408,1738792279118,-2000.0,0.00014652,2]
[351803409,1738792279128,-500.0,0.00014665,2]
[351803410,1738792279139,-30382.0,0.000147,7]
[351803411,1738792279149,-1862.25677,0.000147,2]
[351803412,1738792279159,-498.26,0.00014747,2]
[351803413,1738792279170,-500.0,0.00014765,2]
[351803414,1738792279180,-1000.0,0.0001477,2]
[351803415,1738792279190,-500.0,0.0001477,2]
[351803416,1738792279201,-2000.0,0.00014771,2]
[351803417,1738792279212,-539.96,0.00014776,2]
[351803418,1738792279221,-500.0,0.00014865,2]
[351803419,1738792279231,-2000.0,0.0001489,2]
[351803420,1738792279242,-7876.02481322,0.000149,2]
[351803421,1738792279252,-20000.0,0.000149,7]
[351803422,1738792279263,-215.50892631,0.000149,2]
[351803423,1738792279273,-215.50892629,0.000149,2]
[351803424,1738792279284,-215.50892629,0.000149,2]
[351803425,1738792279293,-1075.42418068,0.00014913,2]
[351803426,1738792279302,-1148.69371186,0.00014913,2]
[351803427,1738792279313,-539.96,0.00014913,2]
[351803428,1738792279323,-1092.09,0.00014926,2]
[351803429,1738792279333,-10000.0,0.00014948,3]
[351803430,1738792279343,-152.0,0.00014962,9]
[351803431,1738792279353,-500.0,0.00014965,2]
[351803432,1738792279363,-1000.0,0.0001497,2]
[351803433,1738792279375,-500.0,0.0001497,2]
[351803434,1738792279385,-1000.0,0.0001497,2]
[351803435,1738792279395,-500.0,0.0001497,2]
[351803436,1738792279406,-151.0,0.0001497,2]
[351803437,1738792279416,-329.946685,0.0001497,2]
[351803438,1738792279427,-329.946694,0.0001497,2]
[351803439,1738792279438,-161.32,0.00014975,2]
[351803440,1738792279449,-850.0,0.00015,7]
[351803441,1738792279459,-1158.0082025,0.00015,2]
[351803442,1738792279469,-1959.43893191,0.00015,2]
[351803443,1738792279478,-24643.54457557,0.00015,2]
[351803444,1738792279488,-91270.98392153,0.00015,7]
[351803445,1738792279498,-4798.7405711,0.00015,2]
[351803446,1738792279510,-814.81165529,0.00015,2]
[351803447,1738792279520,-272818.32451913,0.00015,7]
[351803448,1738792279531,-10000.0,0.00015,10]
[351803449,1738792279541,-694529.41830738,0.00015,2]
[351803450,1738792279552,-3265.76,0.00015,2]
[351803451,1738792279561,-423.73,0.00015,2]
[351803452,1738792279571,-500.0,0.00015,2]
[351803453,1738792279580,-500.0,0.00015,2]
[351803454,1738792279590,-500.0,0.00015,2]
[351803455,1738792279600,-500.0,0.00015,2]
[351803456,1738792279610,-18137.80823438,0.00015,2]
[351803457,1738792279620,-5090.0,0.00015,2]
[351803458,1738792279630,-18196.3076539,0.00015,7]
[351803459,1738792279639,-5287.23538468,0.00015,14]
[351803460,1738792279650,-4521.40785457,0.00015,10]
[351803461,1738792279660,-2094.0,0.00015,2]
[351803462,1738792279670,-800.0,0.00015,2]
[351803463,1738792279679,-1016.92043652,0.00015,30]
[351803464,1738792279689,-900.0,0.00015,16]
[351803465,1738792279699,-37999.87620763,0.00015,4]
[351803466,1738792279708,-7226.0,0.00015,3]
[351803467,1738792279718,-6000.0,0.00015,2]
[351803468,1738792279727,-16612.56323946,0.00015,2]
[351803469,1738792279737,-5704.0,0.00015,15]
[351803470,1738792279746,-5081.47,0.00015,2]
[351803471,1738792279756,-9999.0,0.00015,11]
[351803472,1738792279767,-9999.0,0.00015,12]
[351803473,1738792279777,-4912.79715472,0.00015,2]
[351803474,1738792279786,-30000.0,0.00015,2]
[351803475,1738792279795,-30000.0,0.00015,2]
[351803476,1738792279806,-30115.78890335,0.00015,2]
[351803477,1738792279816,-5964.26583136,0.00015,7]
[351803478,1738792279826,-11724.0,0.00015,2]
[351803479,1738792279836,-219.0,0.00015,2]
[351803480,1738792279845,-600.0,0.00015,2]
[351803481,1738792279855,-600.0,0.00015,2]
[351803482,1738792279867,-150.0,0.00015,20]
[351803483,1738792279877,-2000.0,0.00015009,2]
[351803484,1738792279886,-540.1,0.0001505,2]
[351803485,1738792279896,-500.0,0.00015065,2]
[351803486,1738792279906,-1803.03,0.00015068,2]
[351803487,1738792279916,-300.0,0.00015068,2]
[351803488,1738792279925,-297.46765084,0.000151,2]
[351803489,1738792279935,-2000.0,0.00015128,2]
[351803490,1738792279945,-1225.3133815,0.00015146,15]
[351803491,1738792279956,-500.0,0.00015165,2]
[351803492,1738792279967,-2000.0,0.00015247,2]
[351803493,1738792279977,-1500.0,0.00015248,2]
[351803494,1738792279987,-1500.0,0.00015248,2]
[351803495,1738792279997,-1500.0,0.00015248,2]
[351803496,1738792280006,-1500.0,0.00015248,2]
[351803497,1738792280017,-1614.875445,0.00015248,2]
[351803498,1738792280027,-1500.0,0.00015248,2]
[351803499,1738792280132,-500.0,0.00015265,2]
[351803500,1738792280153,-1517.64,0.000153,2]
[351803501,1738792280163,-160.42,0.00015335,2]
[351803502,1738792280173,-500.0,0.00015365,2]
[351803503,1738792280183,-2000.0,0.00015366,2]
[351803504,1738792280193,-15969.24847052,0.000154,2]
[351803505,1738792280203,-485.63078341,0.000154,2]
[351803506,1738792280213,-500.0,0.00015465,2]
[351803507,1738792280223,-2000.0,0.00015485,2]
[351803508,1738792280233,-219.0,0.000155,3]
[351803509,1738792280243,-500.0,0.00015565,2]
[351803510,1738792280253,-152.0,0.000156,10]
[351803511,1738792280269,-214.01626492,0.000156,5]
[351803512,1738792280279,-2000.0,0.00015605,2]
[351803513,1738792280289,-500.0,0.00015644,2]
[351803514,1738792280300,-500.0,0.00015665,2]
[351803515,1738792280312,-500.0,0.00015694,2]
[351803516,1738792280323,-500.0,0.00015694,2]
[351803517,1738792280333,-500.0,0.00015694,2]
[351803518,1738792280344,-500.0,0.00015694,2]
[351803519,1738792280354,-500.0,0.00015694,2]
[351803520,1738792280365,-500.0,0.00015694,2]
[351803521,1738792280375,-2000.0,0.00015724,2]
[351803522,1738792280386,-500.0,0.00015765,2]
[351803523,1738792280397,-4000.0,0.00015794,3]
[351803524,1738792280408,-2000.0,0.00015843,2]
[351803525,1738792280417,-500.0,0.00015865,2]
[351803526,1738792280427,-32433.53457092,0.000159,2]
[351803527,1738792280438,-20000.0,0.000159,30]
[351803528,1738792280447,-2000.0,0.00015962,2]
[351803529,1738792280457,-500.0,0.00015965,2]
[351803530,1738792280467,-500.0,0.0001597,2]
[351803531,1738792280477,-1000.0,0.0001597,2]
[351803532,1738792280486,-600.0,0.00016,2]
[351803533,1738792280497,-14675.1707489,0.00016,2]
[351803534,1738792280507,-822.84569459,0.00016,6]
[351803535,1738792280522,-202137.8974926,0.00016,7]
[351803536,1738792280531,-600.0,0.00016,2]
[351803537,1738792280541,-900.0,0.00016,17]
[351803538,1738792280550,-800.0,0.00016,3]
[351803539,1738792280560,-4152.0,0.00016,13]
[351803540,1738792280569,-2000.0,0.00016,2]
[351803541,1738792280579,-219.0,0.00016,3]
[351803542,1738792280588,-2000.0,0.0001601,2]
[351803543,1738792280598,-3711.636042,0.0001602,2]
[351803544,1738792280607,-639.70019788,0.0001606,2]
[351803545,1738792280618,-500.0,0.00016065,2]
[351803546,1738792280628,-2000.0,0.00016081,2]
[351803547,1738792280637,-9999.99,0.00016116,2]
[351803548,1738792280648,-4000.0,0.00016126,2]
[351803549,1738792280657,-539.19,0.00016137,7]
[351803550,1738792280667,-539.19,0.00016137,7]
[351803551,1738792280677,-500.0,0.00016165,2]
[351803552,1738792280686,-2000.0,0.000162,2]
[351803553,1738792280696,-500.0,0.00016265,2]
[351803554,1738792280705,-2000.0,0.00016319,2]
[351803555,1738792280715,-6000.0,0.00016324,3]
[351803556,1738792280725,-200.0,0.0001634,2]
[351803557,1738792280734,-500.0,0.00016365,2]
[351803558,1738792280744,-2000.0,0.00016399,2]
[351803559,1738792280755,-539.19,0.00016411,7]
[351803560,1738792280770,-539.19,0.00016411,7]
[351803561,1738792280779,-185.56,0.00016438,2]
[351803562,1738792280788,-659.91,0.00016438,2]
[351803563,1738792280798,-659.91,0.00016438,2]
[351803564,1738792280808,-659.91,0.00016438,2]
[351803565,1738792280818,-659.91,0.00016438,2]
[351803566,1738792280828,-659.91,0.00016438,2]
[351803567,1738792280837,-659.91,0.00016438,2]
[351803568,1738792280847,-659.91,0.00016438,2]
[351803569,1738792280856,-659.91,0.00016438,2]
[351803570,1738792280866,-659.91,0.00016438,2]
[351803571,1738792280876,-659.91,0.00016438,2]
[351803572,1738792280887,-659.91,0.00016438,2]
[351803573,1738792280896,-659.91,0.00016438,2]
[351803574,1738792280906,-659.91,0.00016438,2]
[351803575,1738792280916,-659.91,0.00016438,2]
[351803576,1738792280928,-659.91,0.00016438,2]
[351803577,1738792280937,-659.91,0.00016438,2]
[351803578,1738792280947,-659.91,0.00016438,2]
[351803579,1738792280957,-659.91,0.00016438,2]
[351803580,1738792280966,-659.91,0.00016438,2]
[351803581,1738792280976,-659.91,0.00016438,2]
[351803582,1738792280987,-659.91,0.00016438,2]
[351803583,1738792281000,-659.91,0.00016438,2]
[351803584,1738792281014,-659.91,0.00016438,2]
[351803585,1738792281024,-659.99,0.00016438,2]
[351803586,1738792281035,-528.75,0.00016438,2]
[351803587,1738792281054,-528.75,0.00016438,2]
[351803588,1738792281067,-528.75,0.00016438,2]
[351803589,1738792281078,-528.75,0.00016438,2]
[351803590,1738792281089,-528.75,0.00016438,2]
[351803591,1738792281099,-528.75,0.00016438,2]
[351803592,1738792281108,-528.75,0.00016438,2]
[351803593,1738792281119,-528.75,0.00016438,2]
[351803594,1738792281129,-528.75,0.00016438,2]
[351803595,1738792281139,-528.75,0.00016438,2]
[351803596,1738792281149,-528.75,0.00016438,2]
[351803597,1738792281158,-528.75,0.00016438,2]
[351803598,1738792281169,-528.75,0.00016438,2]
[351803599,1738792281180,-528.75,0.00016438,2]
[351803600,1738792281190,-528.75,0.00016438,2]
[351803601,1738792281200,-528.75,0.00016438,2]
[351803602,1738792281210,-528.75,0.00016438,2]
[351803603,1738792281219,-528.75,0.00016438,2]
[351803604,1738792281230,-528.75,0.00016438,2]
[351803605,1738792281240,-528.75,0.00016438,2]
[351803606,1738792281250,-528.75,0.00016438,2]
[351803607,1738792281261,-528.75,0.00016438,2]
[351803608,1738792281271,-528.75,0.00016438,2]
[351803609,1738792281281,-528.80440561,0.00016438,2]
[351803610,1738792281290,-500.0,0.00016438,2]
[351803611,1738792281300,-500.0,0.00016438,2]
[351803612,1738792281311,-403.77,0.00016438,2]
[351803613,1738792281321,-403.77,0.00016438,2]
[351803614,1738792281331,-403.77,0.00016438,2]
[351803615,1738792281342,-403.77,0.00016438,2]
[351803616,1738792281352,-403.77,0.00016438,2]
[351803617,1738792281362,-403.77,0.00016438,2]
[351803618,1738792281372,-403.77,0.00016438,2]
[351803619,1738792281382,-403.77,0.00016438,2]
[351803620,1738792281391,-403.77,0.00016438,2]
[351803621,1738792281401,-403.77,0.00016438,2]
[351803622,1738792281411,-403.77,0.00016438,2]
[351803623,1738792281421,-403.77,0.00016438,2]
[351803624,1738792281431,-403.77,0.00016438,2]
[351803625,1738792281441,-403.77,0.00016438,2]
[351803626,1738792281451,-403.77,0.00016438,2]
[351803627,1738792281460,-403.77,0.00016438,2]
[351803628,1738792281470,-403.77,0.00016438,2]
[351803629,1738792281480,-500.0,0.00016438,2]
[351803630,1738792281489,-500.0,0.00016438,2]
[351803631,1738792281498,-403.77,0.00016438,2]
[351803632,1738792281509,-403.77,0.00016438,2]
[351803633,1738792281518,-500.0,0.00016438,2]
[351803634,1738792281528,-403.77,0.00016438,2]
[351803635,1738792281537,-500.0,0.00016438,2]
[351803636,1738792281547,-403.77,0.00016438,2]
[351803637,1738792281557,-500.0,0.00016438,2]
[351803638,1738792281567,-500.0,0.00016438,2]
[351803639,1738792281577,-403.77,0.00016438,2]
[351803640,1738792281587,-500.0,0.00016438,2]
[351803641,1738792281598,-403.77,0.00016438,2]
[351803642,1738792281608,-500.0,0.00016438,2]
[351803643,1738792281618,-403.87433786,0.00016438,2]
[351803644,1738792281628,-513.36,0.00016438,2]
[351803645,1738792281638,-684.16,0.00016438,2]
[351803646,1738792281648,-684.16,0.00016438,2]
[351803647,1738792281657,-684.16,0.00016438,2]
[351803648,1738792281667,-684.16,0.00016438,2]
[351803649,1738792281677,-684.16,0.00016438,2]
[351803650,1738792281687,-684.16,0.00016438,2]
[351803651,1738792281696,-684.16,0.00016438,2]
[351803652,1738792281706,-684.16,0.00016438,2]
[351803653,1738792281716,-684.16,0.00016438,2]
[351803654,1738792281725,-684.16,0.00016438,2]
[351803655,1738792281735,-684.16,0.00016438,2]
[351803656,1738792281745,-684.16,0.00016438,2]
[351803657,1738792281754,-684.16,0.00016438,2]
[351803658,1738792281767,-684.16,0.00016438,2]
[351803659,1738792281777,-684.16,0.00016438,2]
[351803660,1738792281787,-684.16,0.00016438,2]
[351803661,1738792281798,-684.16,0.00016438,2]
[351803662,1738792281809,-684.16,0.00016438,2]
[351803663,1738792281819,-684.16,0.00016438,2]
[351803664,1738792281828,-684.16,0.00016438,2]
[351803665,1738792281838,-684.16,0.00016438,2]
[351803666,1738792281849,-684.16,0.00016438,2]
[351803667,1738792281858,-684.16,0.00016438,2]
[351803668,1738792281868,-684.31293749,0.00016438,2]
[351803669,1738792281877,-3908.7889829,0.00016438,2]
[351803670,1738792281888,-300.0,0.00016438,2]
[351803671,1738792281898,-150.0,0.00016438,2]
[351803672,1738792281907,-500.0,0.00016465,2]
[351803673,1738792281917,-1042.28230895,0.0001649,2]
[351803674,1738792281926,-7351.47,0.000165,2]
[351803675,1738792281936,-5426.62,0.000165,7]
[351803676,1738792281945,-219.0,0.000165,4]
[351803677,1738792281955,-1015.42916805,0.00016546,2]
[351803678,1738792281965,-2000.0,0.00016546,2]
[351803679,1738792281975,-1225.92095789,0.00016546,2]
[351803680,1738792281985,-2053.59723357,0.00016546,2]
[351803681,1738792281994,-2095.44540917,0.00016546,2]
[351803682,1738792282004,-500.0,0.00016565,2]
[351803683,1738792282016,-185.56,0.00016575,2]
[351803684,1738792282134,-9992.6390392,0.000166,2]
[351803685,1738792282144,-2517.19,0.00016658,30]
[351803686,1738792282154,-500.0,0.00016665,2]
[351803687,1738792282164,-539.19,0.00016685,7]
[351803688,1738792282174,-539.19,0.00016685,7]
[351803689,1738792282183,-185.56,0.00016712,2]
[351803690,1738792282193,-220.34,0.00016712,2]
[351803691,1738792282203,-500.0,0.00016765,2]
[351803692,1738792282213,-500.0,0.000168,5]
[351803693,1738792282222,-820.96,0.00016813,2]
[351803694,1738792282232,-185.56,0.00016849,2]
[351803695,1738792282242,-500.0,0.00016865,2]
[351803696,1738792282253,-74581.33327209,0.0001688,2]
[351803697,1738792282265,-14338.2,0.00016922,2]
[351803698,1738792282275,-6000.0,0.00016948,3]
[351803699,1738792282285,-539.19,0.00016959,7]
[351803700,1738792282295,-539.19,0.00016959,7]
[351803701,1738792282305,-500.0,0.00016965,2]
[351803702,1738792282315,-185.56,0.00016986,2]
[351803703,1738792282327,-699.22,0.00016986,2]
[351803704,1738792282342,-14541.46457584,0.00017,2]
[351803705,1738792282354,-10000.0,0.00017,5]
[351803706,1738792282370,-900.0,0.00017,18]
[351803707,1738792282383,-900.0,0.00017,4]
[351803708,1738792282393,-219.0,0.00017,4]
[351803709,1738792282403,-650.0,0.00017,2]
[351803710,1738792282416,-650.0,0.00017,2]
[351803711,1738792282426,-9095.4335812,0.00017048,2]
[351803712,1738792282439,-9095.43358119,0.00017048,2]
[351803713,1738792282452,-9095.43358119,0.00017048,2]
[351803714,1738792282463,-500.0,0.00017065,2]
[351803715,1738792282472,-1176.88821,0.00017088,7]
[351803716,1738792282483,-185.56,0.00017123,2]
[351803717,1738792282493,-1011.95,0.00017123,2]
[351803718,1738792282503,-250.0,0.00017123,2]
[351803719,1738792282514,-1092.09,0.00017162,2]
[351803720,1738792282524,-500.0,0.00017165,2]
[351803721,1738792282534,-449.29,0.00017219,2]
[351803722,1738792282544,-150.0,0.00017219,2]
[351803723,1738792282555,-410.96,0.00017219,2]
[351803724,1738792282564,-150.0,0.00017219,2]
[351803725,1738792282574,-673.19,0.00017219,2]
[351803726,1738792282585,-436.92,0.00017219,2]
[351803727,1738792282594,-150.0,0.00017219,2]
[351803728,1738792282603,-300.0,0.00017219,2]
[351803729,1738792282613,-539.19,0.00017233,7]
[351803730,1738792282623,-539.19,0.00017233,7]
[351803731,1738792282633,-185.56,0.0001726,2]
[351803732,1738792282642,-1803.03,0.0001726,4]
[351803733,1738792282653,-500.0,0.00017265,2]
[351803734,1738792282662,-1176.88821,0.00017288,7]
[351803735,1738792282675,-7351.47,0.000173,2]
[351803736,1738792282685,-500.0,0.00017365,2]
[351803737,1738792282695,-185.56,0.00017397,2]
[351803738,1738792282705,-500.0,0.00017465,2]
[351803739,1738792282714,-1176.88821,0.00017488,7]
[351803740,1738792282724,-6000.0,0.00017494,4]
[351803741,1738792282734,-219.0,0.000175,5]
[351803742,1738792282745,-539.19,0.00017507,7]
[351803743,1738792282754,-539.19,0.00017507,7]
[351803744,1738792282765,-202.0,0.0001752,2]
[351803745,1738792282775,-185.56,0.00017534,2]
[351803746,1738792282785,-500.0,0.00017565,2]
[351803747,1738792282794,-500.0,0.00017665,2]
[351803748,1738792282805,-185.56,0.00017671,2]
[351803749,1738792282814,-1176.88821,0.00017688,7]
[351803750,1738792282824,-500.0,0.00017765,2]
[351803751,1738792282834,-6002.5912738,0.000178,2]
[351803752,1738792282843,-2839.8,0.000178,5]
[351803753,1738792282853,-185.56,0.00017808,2]
[351803754,1738792282864,-350.0,0.00017808,2]
[351803755,1738792282873,-500.0,0.00017865,2]
[351803756,1738792282883,-737.3572,0.00017888,7]
[351803757,1738792282892,-19472.3635206,0.000179,30]
[351803758,1738792282901,-86413.90199867,0.000179,2]
[351803759,1738792282911,-165740.21061761,0.000179,3]
[351803760,1738792282921,-1003.0,0.000179,6]
[351803761,1738792282931,-185.56,0.00017945,2]
[351803762,1738792282941,-500.0,0.00017965,2]
[351803763,1738792282950,-1000.0,0.00017999,7]
[351803764,1738792282961,-1000.0,0.00017999,5]
[351803765,1738792282971,-1000.0,0.00017999,9]
[351803766,1738792282981,-31959.41,0.00018,5]
[351803767,1738792282991,-10000.0,0.00018,5]
[351803768,1738792283000,-198.3569814,0.00018,2]
[351803769,1738792283010,-10000.0,0.00018,2]
[351803770,1738792283020,-13392.41796822,0.00018,2]
[351803771,1738792283030,-3279.0,0.00018,60]
[351803772,1738792283041,-9013.04003126,0.00018,2]
[351803773,1738792283051,-1144.86501864,0.00018,2]
[351803774,1738792283061,-5076.02664,0.00018,30]
[351803775,1738792283071,-815.03847417,0.00018,10]
[351803776,1738792283082,-3829669.38528831,0.00018,15]
[351803777,1738792283093,-388.34561597,0.00018,5]
[351803778,1738792283102,-900.0,0.00018,19]
[351803779,1738792283112,-111603.56826794,0.00018,10]
[351803780,1738792283125,-15133.48474254,0.00018,2]
[351803781,1738792283136,-1136.68493257,0.00018,2]
[351803782,1738792283146,-1034.65137668,0.00018,2]
[351803783,1738792283155,-5621.88753408,0.00018,2]
[351803784,1738792283165,-907.32521295,0.00018,2]
[351803785,1738792283175,-200.0,0.00018,20]
[351803786,1738792283185,-26417.0,0.00018,2]
[351803787,1738792283194,-49552.51539138,0.00018,10]
[351803788,1738792283204,-1000.0,0.00018,10]
[351803789,1738792283214,-10000.0,0.00018,10]
[351803790,1738792283223,-219.0,0.00018,5]
[351803791,1738792283233,-508.079442,0.00018,2]
[351803792,1738792283242,-23676.6064004,0.00018,2]
[351803793,1738792283252,-500.0,0.00018065,2]
[351803794,1738792283264,-185.56,0.00018082,2]
[351803795,1738792283273,-2000.0,0.00018082,2]
[351803796,1738792283283,-2500.0,0.00018082,2]
[351803797,1738792283292,-1176.88821,0.00018088,7]
[351803798,1738792283302,-1700.26113841,0.000181,2]
[351803799,1738792283312,-401705.78984285,0.000181,2]
[351803800,1738792283323,-7351.47,0.000181,2]
[351803801,1738792283332,-4687.35341279,0.000181,90]
[351803802,1738792283342,-10000.0,0.000181,90]
[351803803,1738792283351,-500.0,0.00018165,2]
[351803804,1738792283360,-215131.64391421,0.000182,2]
[351803805,1738792283371,-185.56,0.00018219,2]
[351803806,1738792283380,-500.0,0.00018265,2]
[351803807,1738792283389,-1176.88821,0.00018288,7]
[351803808,1738792283399,-185.56,0.00018356,2]
[351803809,1738792283408,-82497.88,0.00018356,2]
[351803810,1738792283419,-500.0,0.00018365,2]
[351803811,1738792283429,-500.0,0.00018384,2]
[351803812,1738792283438,-6000.0,0.00018432,4]
[351803813,1738792283448,-500.0,0.00018465,2]
[351803814,1738792283458,-1176.88821,0.00018488,7]
[351803815,1738792283469,-185.56,0.00018493,2]
[351803816,1738792283479,-362.87248574,0.00018493,2]
[351803817,1738792283490,-200.0,0.000185,20]
[351803818,1738792283501,-219.0,0.000185,6]
[351803819,1738792283511,-500.0,0.00018565,2]
[351803820,1738792283521,-153.0,0.000186,2]
[351803821,1738792283530,-153.0,0.000186,2]
[351803822,1738792283540,-153.0,0.000186,2]
[351803823,1738792283550,-4807.15,0.000186,31]
[351803824,1738792283559,-4807.15,0.000186,31]